Cogmind - Beta 15 @@@ ROGUE MODE // 2025.06.20 @ 10:14:05 Player: Elxavo Result: Destroyed by D-53 Grenadier with Mini Grenade Launcher Performance ------------- Evolutions (2) 1000 Regions Visited (4) 800 Robots Destroyed (34) 170 Value Destroyed (1014) 1014 Prototype IDs (2) 40 Alien Tech Used (0) 0 Bonus (0) 0 TOTAL SCORE: 3024 Bonus ------- None Cogmind --------- Core Integrity 0/550 Matter 112/300 Energy 100/100 System Corruption 0% Temperature Cool (0) Movement Core (350) Ox6 Location -8/Storage Parts ------- > --- POWER (1) -------- (None) > --- PROPULSION (4) --- (None) > --- UTILITY (4) ------ Large Storage Unit Advanced Targeting Computer > --- WEAPON (2) ------- (None) > --- INVENTORY (15) --- Disposable Heat Sink Large Storage Unit Structural Scanner Visual Processing Unit Seismic Detector Peak State ------------ > --- POWER ------------ Light Nuclear Core > --- PROPULSION ------- Aluminum Leg Aluminum Leg Aluminum Leg Aluminum Leg > --- UTILITY ---------- Large Storage Unit Improved Terrain Scanner Advanced Targeting Computer > --- WEAPON ----------- Assault Rifle Light Cannon > --- INVENTORY -------- Light Treads Light Treads Disposable Heat Sink Large Storage Unit Structural Scanner Visual Processing Unit Seismic Detector Mini Grenade Launcher Mini Grenade Launcher [Rating: 17] Favorites ----------- Power Light Ion Engine Engine Light Ion Engine Power Core Light Nuclear Core Propulsion Aluminum Leg Treads Light Treads Leg Aluminum Leg Utility Large Storage Unit Device Seismic Detector Storage Large Storage Unit Processor Advanced Targeting Computer Protection Light Armor Plating Weapon Assault Rifle Ballistic Gun Assault Rifle Ballistic Cannon Light Cannon Launcher Mini Grenade Launcher Build | -11 -10 -9 -8 -8 ------- Run | Yrd Mat Mat Mat Sto Slots Evolved 4 | . . 2 2 . Power . | . . . . . Propulsion 2 | . . 2 . . Utility 2 | . . . 2 . Weapon . | . . . . . Parts Attached 38 | 7 9 4 1 17 Power 6 | 1 1 1 . 3 Engine 4 | 1 1 1 . 1 Core 2 | . . . . 2 Reactor . | . . . . . Propulsion 12 | 2 1 2 . 7 Treads 2 | . . . . 2 Leg 10 | 2 1 2 . 5 Wheel . | . . . . . Hover . | . . . . . Flight . | . . . . . Utility 12 | 2 4 . 1 5 Device 4 | 1 1 . 1 1 Storage 2 | 1 1 . . . Processor 1 | . . . . 1 Hackware . | . . . . . Protection 5 | . 2 . . 3 Artifact . | . . . . . Weapon 8 | 2 3 1 . 2 Energy Gun . | . . . . . Energy Cannon . | . . . . . Ballistic Gun 5 | 2 2 1 . . Ballistic Cannon 1 | . 1 . . . Launcher 2 | . . . . 2 Special Weapon . | . . . . . Impact Weapon . | . . . . . Slashing Weapon . | . . . . . Piercing Weapon . | . . . . . Special Melee Weapon . | . . . . . Unidentified Prototypes . | . . . . . Parts Lost 26 | . 1 . . 25 Power 4 | . . . . 4 Propulsion 11 | . 1 . . 10 Utility 6 | . . . . 6 Weapon 5 | . . . . 5 Highest Loss Streak 11 | . 1 . . 11 To Critical Strikes . | . . . . . Average Backups 13 | 4 14 14 13 11 Power 1 | . 1 1 1 . Propulsion 3 | 3 4 3 3 1 Utility 4 | . 4 6 5 5 Weapon 3 | . 3 3 4 3 Tool/Special . | . . . . . Unused Backups 7 | . 4 . . 3 Power . | . . . . . Propulsion 2 | . 2 . . . Utility 4 | . 1 . . 3 Weapon 1 | . 1 . . . Tool/Special . | . . . . . Average Slot Usage (%) 93 | . 94 99 99 85 Engine 11 | . 13 11 9 7 Leg 30 | . 27 43 36 25 Device 9 | . 8 . 17 14 Storage 12 | . 14 11 9 9 Protection 6 | . 4 11 9 6 Ballistic Gun 17 | . 17 22 18 15 Ballistic Cannon 3 | . 5 . . . Peak Build Rating 17 | 8 9 12 15 17 Average Rating 10 | 5 8 11 14 14 On Entrance 8 | . 8 9 12 15 Naked Turns . | . . . . . Heaviest Build 33 | 15 31 31 33 33 Greatest Support 40 | 20 20 40 40 40 Greatest Overweight (x) 8 | 1 3 . . 8 Average Overweight (x) . | . . . . . Largest Inventory Capacity 15 | 8 15 15 15 15 Average Capacity 14 | 7 14 15 15 15 Most Carried 15 | 8 15 15 14 15 Average Carried 13 | 4 14 14 13 11 Final Capacity 15 | 8 15 15 15 15 Final Carried 15 | 8 15 15 13 5 Class Distribution -------------------- 70% | Mutant 29% | Scavenger-Mutant Dominant Class ---------------- Mutant | -10/Materials Mutant | -9/Materials Scavenger-Mutant | -8/Materials Scavenger-Mutant | -8/Storage Resources | -11 -10 -9 -8 -8 ----------- Run | Yrd Mat Mat Mat Sto Matter Collected 1241 | 281 299 182 . 479 Remotely . | . . . . . Salvage Created 1345 | 37 364 182 . 762 Parts 70 | 5 22 7 . 36 Haulers Intercepted . | . . . . . Recyclers Shooed 2 | . 2 . . . Parts Field Recycled . | . . . . . Retrieved Matter . | . . . . . Parts Self-Destructed . | . . . . . Prevented . | . . . . . Kills | -11 -10 -9 -8 -8 ------- Run | Yrd Mat Mat Mat Sto Combat Hostiles Destroyed 34 | . 8 5 . 21 Guns 23 | . 6 5 . 12 Cannons 3 | . 2 . . 1 AOE 8 | . . . . 8 Classes Destroyed 8 | 1 5 1 . 1 Tunneler 2 | 2 . . . . Recycler 1 | . 1 . . . Operator 3 | . 2 1 . . Watcher 3 | . 3 . . . Swarmer 6 | . 3 3 . . Grunt 11 | . 5 . . 6 Sentry 8 | . . 2 . 6 Assembled 9 | . . . . 9 Best Kill Streak 9 | 1 3 4 . 9 Combat Bots Only 9 | . 3 4 . 9 Max Kills in Single Turn 3 | 1 1 1 . 3 Gunslinging . | . . . . . Exploded 3 | . . . . 3 Melee . | . . . . . Uniques/NPCs Destroyed . | . . . . . Combat | -11 -10 -9 -8 -8 -------- Run | Yrd Mat Mat Mat Sto Hostile Shots Fired 219 | . 61 27 2 129 Missed 50 | . 20 3 1 26 Hits 169 | . 41 24 1 103 Melee 15 | . . . . 15 Projectile 154 | . 41 24 1 88 AOE 15 | . . . . 15 Critical Strikes 7 | . . 1 . 6 Damage Taken 3102 | . 459 337 12 2294 Core 632 | . 47 23 . 562 Absorbed by Shields . | . . . . . Redirected to Shielding 31 | . . . . 31 Regen/Repaired (Parts) 160 | . . . . 160 Core Remaining (%) 91 | 100 81 94 . . Volleys Fired 145 | 5 48 21 1 70 Largest 2 | 2 2 2 2 2 Hottest 50 | 40 50 43 43 50 Shots Fired 262 | 10 91 42 2 117 Gun 215 | 10 62 42 2 99 Cannon 33 | . 29 . . 4 Launcher 14 | . . . . 14 Special . | . . . . . Kinetic 248 | 10 91 42 2 103 Thermal . | . . . . . Explosive 14 | . . . . 14 Electromagnetic . | . . . . . Robot Hit Streak 34 | 2 7 7 . 34 Robot Miss Streak 3 | 3 3 3 2 2 Penetration Max . | . . . . . Secondary Targets 1 | . . 1 . . Max Gunslinging Chain 1 | . . 1 . . Shots Hit Robots 188 | 4 55 27 . 102 Core Hits 98 | 2 21 10 . 65 Critical Kills . | . . . . . Critical Parts Destroyed . | . . . . . Critical Strikes 1 | . 1 . . . Blast 1 | . 1 . . . Melee Attacks . | . . . . . Impact . | . . . . . Slashing . | . . . . . Piercing . | . . . . . Sneak Attacks . | . . . . . Combat Hostiles . | . . . . . Follow-up Attacks . | . . . . . Damage Inflicted 3441 | 61 781 289 14 2296 Guns 1981 | 61 535 289 14 1082 Cannons 319 | . 246 . . 73 Explosions 1141 | . . . . 1141 Melee . | . . . . . Ramming . | . . . . . Kinetic 2300 | 61 781 289 14 1155 Thermal . | . . . . . Explosive 1141 | . . . . 1141 Electromagnetic . | . . . . . Impact . | . . . . . Slashing . | . . . . . Piercing . | . . . . . Highest Corruption . | . . . . . Average Corruption . | . . . . . Corruption Purged . | . . . . . Corruption Blocked . | . . . . . Overload Shots . | . . . . . Overflow Damage 71 | . . . . 71 Projectiles . | . . . . . Explosions 71 | . . . . 71 Melee . | . . . . . Knockbacks 7 | . 7 . . . Impact . | . . . . . Kinetic 7 | . 7 . . . Secondary . | . . . . . Self-Inflicted Damage 200 | . . . . 200 Shots 5 | . . . . 5 Rammed . | . . . . . Targets Rammed . | . . . . . Kicked . | . . . . . Crushed . | . . . . . Highest Temperature 36 | . 27 36 . 33 Average Temperature 10 | . 8 14 . 10 Received Heat Transfer 839 | . 201 99 . 539 Siege Activations . | . . . . . Martial Activations . | . . . . . Shielding Activations . | . . . . . Robots Disrupted . | . . . . . Combat Hostiles . | . . . . . Robots Corrupted . | . . . . . Combat Hostiles . | . . . . . Parts Fried . | . . . . . Impact Corruptions . | . . . . . Robots Melted . | . . . . . Combat Hostiles . | . . . . . Parts Melted . | . . . . . Heat Transferred . | . . . . . Parts Sabotaged . | . . . . . Parts Stolen . | . . . . . Parts Stripped . | . . . . . Power Chain Reactions . | . . . . . Alert | -11 -10 -9 -8 -8 ------- Run | Yrd Mat Mat Mat Sto Maximum Alert Level . | . . . . . Low Security (%) 100 | 100 100 100 100 100 Level 1 . | . . . . . Level 2 . | . . . . . Level 3 . | . . . . . Level 4 . | . . . . . Level 5 . | . . . . . High Security . | . . . . . Max Security . | . . . . . Peak Influence 105 | 5 84 105 18 104 Initial 18 | . . 1 18 . Average 20 | . 17 37 1 31 Influence Increases 846 | 10 256 150 . 430 Destroy 0b10 Robot/C 500 | . 160 100 . 240 Destroy 0b10 Robot/NC 70 | 10 30 5 . 25 Destroy Leader 146 | . 36 30 . 80 Successful Hack 20 | . 15 . . 5 Disable Machine 15 | . . . . 15 Destroy Structure 65 | . . . . 65 Lose Combat Pursuer 30 | . 15 15 . . Influence Decreases 846 | 10 252 109 45 430 Entered New Map 30 | . . 3 27 . Time Decay 579 | 10 242 106 18 203 Lost Part 237 | . 10 . . 227 Squads Dispatched 4 | . 1 . . 3 Investigation 1 | . . . . 1 Extermination . | . . . . . Reinforcement 3 | . 1 . . 2 Assault . | . . . . . Garrison . | . . . . . Intercept . | . . . . . Searches Triggered . | . . . . . Construction Impeded 1 | . . . . 1 Haulers Reinforced . | . . . . . Active Scanning Responses . | . . . . . Cargo Convoy Interrupts . | . . . . . Stealth | -11 -10 -9 -8 -8 --------- Run | Yrd Mat Mat Mat Sto Distress Signals 3 | . . 1 1 1 Communications Jammed . | . . . . . Distress Signals . | . . . . . Times Spotted 57 | . 20 8 4 25 Peak Tracking Total 8 | . 5 6 4 8 Tactical Retreats 2 | . 1 1 . . Traps | -11 -10 -9 -8 -8 ------- Run | Yrd Mat Mat Mat Sto Traps Triggered 5 | . 4 . . 1 Indirectly . | . . . . . Trap Hack Attempts . | . . . . . Triggered . | . . . . . Disarmed . | . . . . . Reprogrammed . | . . . . . Reused . | . . . . . Traps Extracted . | . . . . . Installed . | . . . . . Triggered . | . . . . . Machines | -11 -10 -9 -8 -8 ---------- Run | Yrd Mat Mat Mat Sto Machines Disabled 1 | . . . . 1 Max in Single Turn 1 | . . . . 1 Machines Repaired . | . . . . . Machines Dismantled . | . . . . . Machines Sabotaged . | . . . . . Overloaded Fab Kills . | . . . . . Hacking | -11 -10 -9 -8 -8 --------- Run | Yrd Mat Mat Mat Sto Machines Accessed 12 | . 6 2 2 2 Terminals 10 | . 5 2 2 1 Fabricators . | . . . . . Repair Stations 1 | . . . . 1 Recycling Units 1 | . 1 . . . Scanalyzers . | . . . . . Garrison Access . | . . . . . Total Hacks 31 | . 15 4 5 7 Successful 15 | . 8 . 3 4 Failed 16 | . 7 4 2 3 Catastrophic 5 | . 1 2 1 1 Database Lockouts . | . . . . . Manual . | . . . . . Terminals 23 | . 13 4 5 1 Fabricators . | . . . . . Repair Stations 6 | . . . . 6 Recycling Units 2 | . 2 . . . Scanalyzers . | . . . . . Garrison Access . | . . . . . Terminal Hacks 10 | . 7 . 3 . Record 1 | . 1 . . . Robot Analysis 1 | . 1 . . . Prototype ID Bank 1 | . 1 . . . Emergency Access Points 1 | . . . 1 . Terminal Index 1 | . 1 . . . Locate Traps 2 | . 2 . . . Dispatch Records 1 | . . . 1 . Maintenance Status 1 | . . . 1 . Registered Components 1 | . 1 . . . Fabricator Hacks . | . . . . . Repair Station Hacks 4 | . . . . 4 Scan Component 2 | . . . . 2 Repair 2 | . . . . 2 Recycling Unit Hacks 1 | . 1 . . . Report Inventory 1 | . 1 . . . Scanalyzer . | . . . . . Garrison Access Hacks . | . . . . . Unauthorized Hacks . | . . . . . Terminals . | . . . . . Fabricators . | . . . . . Repair Stations . | . . . . . Recycling Units . | . . . . . Scanalyzers . | . . . . . Garrison Access . | . . . . . Data Cores Recovered 2 | . 1 1 . . Used 1 | . . 1 . . Hacking Detections 10 | . 5 2 1 2 Full Trace Events 1 | . . . . 1 Feedback Events . | . . . . . Feedback Blocked . | . . . . . Robot Schematics Acquired . | . . . . . Robots Built . | . . . . . Authchips . | . . . . . Time . | . . . . . Total Robot Build Rating . | . . . . . Part Schematics Acquired . | . . . . . Parts Built . | . . . . . Authchips . | . . . . . Time . | . . . . . Total Part Build Rating . | . . . . . Parts Repaired 2 | . . . . 2 Time 52 | . . . . 52 Parts Recycled . | . . . . . Recycled Matter . | . . . . . Retrieved Matter . | . . . . . Retrieved Components . | . . . . . Parts Scanalyzed . | . . . . . Part Schematics Acquired . | . . . . . Parts Damaged . | . . . . . Bothacking | -11 -10 -9 -8 -8 ------------ Run | Yrd Mat Mat Mat Sto Used RIF Installer . | . . . . . Robots Hacked . | . . . . . Non-combat . | . . . . . Combat . | . . . . . Robot Hacks Applied . | . . . . . Relay Couplers Released . | . . . . . Fabnet Peak Effective % . | . . . . . Robots Rewired . | . . . . . Allies Hacked . | . . . . . Hacks Repelled . | . . . . . Allies | -11 -10 -9 -8 -8 -------- Run | Yrd Mat Mat Mat Sto Total Allies . | . . . . . Largest Group . | . . . . . Highest-Rated Group . | . . . . . Highest-Rated Ally . | . . . . . Total Orders . | . . . . . Ally Attacks . | . . . . . Total Damage . | . . . . . Kills . | . . . . . Allies Corrupted . | . . . . . Allies Melted . | . . . . . Intel | -11 -10 -9 -8 -8 ------- Run | Yrd Mat Mat Mat Sto Active Infowar (turns) 2059 | 50 1086 . 322 601 Terrain 922 | . . . 321 601 Structural 6 | . 6 . . . Seismic 1559 | 50 1080 . 322 107 Robot Analysis Total 1 | . 1 . . . Derelict Logs Recovered . | . . . . . Drone Launches . | . . . . . Drone Recoveries . | . . . . . Exploration | -11 -10 -9 -8 -8 ------------- Run | Yrd Mat Mat Mat Sto Turns Passed 3137 | 115 1712 381 322 607 Spaces Moved 1373 | 71 597 263 265 177 Core 20 | 17 . . . 3 Treads 7 | . . . . 7 Legs 1346 | 54 597 263 265 167 Wheels . | . . . . . Hover . | . . . . . Flight . | . . . . . Fastest Speed 50 | 50 120 120 120 120 Average Speed 154 | 108 185 120 120 170 Slowest Speed 450 | 120 330 120 120 450 Overloaded Moves . | . . . . . Propulsion Burnouts . | . . . . . Robots Hopped . | . . . . . Potential Cave-ins . | . . . . . Cave-ins Triggered . | . . . . . Exploration Rate (%) 30 | 4 79 19 22 29 Regions Visited 4 Branch Regions 1 Pre-discovered Areas . | . . . . . Known Exits Taken . | . . . . . Unknown Exits Taken 4 | 1 1 1 1 . Scrap Searched . | . . . . . Spaces Dug . | . . . . . Terrain Destroyed 86 | . . . . 86 Melee . | . . . . . Projectile . | . . . . . AOE 86 | . . . . 86 Terrain Rammed . | . . . . . Walls Destroyed . | . . . . . Machines Disabled . | . . . . . Actions | -11 -10 -9 -8 -8 --------- Run | Yrd Mat Mat Mat Sto Total 2131 | 98 1108 290 267 368 Wait 513 | 1 425 . . 87 Move 1369 | 70 596 262 264 177 Hop . | . . . . . Pick Up 44 | 15 16 1 . 12 Fast Attach 4 | . 4 . . . Attach 36 | 7 5 2 2 20 Detach 1 | . 1 . . . Swap 11 | . 6 3 . 2 Drop 8 | . 7 1 . . Fire 145 | 5 48 21 1 70 Melee . | . . . . . Ram . | . . . . . Kick . | . . . . . Crush . | . . . . . Escape Stasis . | . . . . . Rewire . | . . . . . Trap . | . . . . . Miscellaneous . | . . . . . Route ------- -11/Scrapyard -10/Materials (discovered 2 exits: *Mat x2) -9/Materials -8/Materials -8/Storage History --------- Turn | Location | Event 6 | -11/Scrapyard | Discovered new exit (range 15) 116 | -11/Scrapyard | Entered Materials 302 | -10/Materials | Build established: Mutant 1229 | -10/Materials | Discovered new exit (range 11) 1546 | -10/Materials | Discovered new exit (range 9) 1828 | -10/Materials | Entered another Materials area 1828 | -9/Materials | Evolved 2 slots: Propulsion x2 2170 | -9/Materials | Discovered new exit (range 11) 2209 | -9/Materials | Entered another Materials area 2209 | -8/Materials | Evolved 2 slots: Utility x2 2364 | -8/Materials | Build established: Scavenger-Mutant 2508 | -8/Materials | Discovered new exit (range 16) 2531 | -8/Materials | Entered Storage 2643 | -8/Storage | Lost 3 parts (2n1u) 2792 | -8/Storage | Repaired Aluminum Leg 2820 | -8/Storage | Repaired Assault Rifle 2951 | -8/Storage | Lost 5 parts (1p1n2u1w) 2971 | -8/Storage | Destroyed 7 combat bots 3044 | -8/Storage | Assembled infested ambush trap array 3105 | -8/Storage | Destroyed 9 combat bots 3115 | -8/Storage | Lost 11 parts (2p5n1u3w) 3125 | -8/Storage | Core integrity fell below 50% 3135 | -8/Storage | Core integrity fell below 20% 3138 | -8/Storage | Destroyed by D-53 Grenadier with Mini Grenade Launcher Last Messages --------------- 03123_ U-05 Engineer lays Concrete. 03124_ C-30 ARC bursts open, deploying its payload. 03124_ D-53 Grenadier unfolds itself. 03124_ U-05 Engineer destroyed. 03125_ U-05 Engineer lays Concrete. 03125_ Door Terminal disabled. 03126_ U-05 Engineer lays Concrete. 03126_ Imp. Aluminum Leg destroyed. 03127_ The unstable cave ceiling collapses. 03127_ U-05 Engineer lays Concrete. 03128_ Lgt. Nuclear Core destroyed. 03128_ U-05 Engineer destroyed. 03130_ The unstable cave ceiling collapses. 03130_ Aluminum Leg destroyed. 03131_ The unstable cave ceiling collapses. 03132_ Imp. Terrain Scanner destroyed. 03133_ The unstable cave ceiling collapses. 03134_ Core Shielding destroyed. 03135_ The unstable cave ceiling collapses. 03138_ Mni. Grenade Launcher destroyed. Map ----- +----------------------------------------------------+ | | | | | | | | | | | | | | | | | | | | | | | | | | | | | | | ??????#?#????????????#????????#?????##?? | | ????#??????#???##??###?????????##??##### | | ?????????????#??#?###??##??#????###### | | ?????#??????##??#####??#?#????#???#""" | | ?????#??#??## ## ##????#?##??#?#"R | | ?????????### ######################""" | | ????#????# [ =% ##### | | ?#????#???# # ##### ##### #???# | | ??????????# #####+#####%####### | | ????#?????# # [ | | ???#?#????# @ #### #### | | ?#????????" #??# ###? | | ???????# #??# #?#? | | ??????#T # ##?# ###? | | ??????##??# #??# ##?? | | ???? ??? # ##############??#+#??? | | ?? ????? ? ??? ??#?????#?#? ?? ? | | ?????"??? d " ???##???????????? ? | | ??????#? ????##????#?????"?"?? | | ??????? d ??##???#???#? ????? ? | | ??????+ #?????#????????? "???? | | ??????# T #????#??#????#?#?????? | | ??????# # ####??????????????????? | | ?????????### ??????????????#??????#? | | ???????????# ??????????????????????? | | ?????????????""" ??????????????????????? | | ???????????????????????????????????????? | | ???????????????????????????????????????? | | ???????????????????????????????????????? | | ???????????????????????????????????????? | | ???????????????????????????????????????? | | ???????????????????????????????????????? | | ???????????????????????????????????????? | | ???????????????????????????????????????# | | ???????????????????????????????????????? | +----------------------------------------------------+ Best States ------------- Heat Dissipation 31 Energy Generation 14 Energy Capacity 250 Matter Stores 300 Matter Capacity 300 Sight Range 16 Terrain Scan Range 16 Terrain Scan Density 10 Armor Coverage 150 Core Shielding 20 Evasion (%) 55 Targeting Accuracy 8 Recoil Reduction 1 Item Schematics ----------------- None Robot Schematics ------------------ None Fabricated ------------ Nothing Repaired ---------- Aluminum Leg | 20% | -8/Storage Assault Rifle | 12% | -8/Storage Alien Tech Used ----------------- None Achievements -------------- None Challenges ------------ None Game ------ Seed ResetGhostReplica Manual? 0 Play Time 00:44:38 Cumulative 35.3 hours Start 2025.06.19 @ 21:55:08 End 2025.06.20 @ 10:14:05 Sessions 2 Manual Loads 0 Difficulty Rogue Special Mode None Game No. 43 Rogue 43 Adventurer 0 Explorer 0 Win Type - Total 0 Types 0/0/0/0/0/0/0/0/0/0 Lore% 12 Gallery% 19 Achievement% 16 Wizard Run 0 Options --------- Layout 0 ASCII 0 Keyboard 0 Movement Mouse Keybinds 0 Fullscreen 1 Font 18/SmallcapsGlow Map View 76x50 Zoom Use 0% Tactical HUD 1 Map Filters NONE Filters LOW_CONTRAST(13,24,33) Steam 1 RUN: 2ebf8558-4a4c-4fea-a26e-df4f4b5662b3